bitfinex/quotes_BTCUSD_20251010
["timestamp","ask_amount","ask_price","bid_price","bid_amount"]
[1760105720908,0.16770543,121860.0,121850.0,0.96258727]
[1760105721135,0.16770543,121860.0,121850.0,0.65867341]
[1760105721350,0.21557543,121860.0,121850.0,0.08312206]
[1760105721555,0.21557543,121860.0,121850.0,0.08512206]
[1760105721769,0.18785543,121860.0,121850.0,0.27608829]
[1760105721985,0.00358267,121860.0,121850.0,0.34201829]
[1760105722203,0.00358267,121860.0,121850.0,0.34101829]
[1760105722407,0.16770543,121860.0,121850.0,0.34001829]
[1760105722667,0.00358267,121860.0,121850.0,0.87075136]
[1760105722873,0.16770543,121860.0,121850.0,0.95074816]
[1760105723075,0.16770543,121860.0,121850.0,0.78661193]
[1760105723286,0.16770543,121860.0,121850.0,0.94194181]
[1760105723539,0.16770543,121860.0,121850.0,0.77326374]
[1760105723740,0.16770543,121860.0,121850.0,0.72923799]
[1760105723960,0.16770543,121860.0,121850.0,0.93728422]
[1760105724381,0.16770543,121860.0,121850.0,0.77314799]
[1760105724809,0.16770543,121860.0,121850.0,0.93728422]
[1760105725256,0.00358267,121860.0,121850.0,0.89337422]
[1760105725457,0.00358267,121860.0,121850.0,0.93728422]
[1760105725700,0.00358267,121860.0,121850.0,0.85728742]
[1760105726240,0.16770543,121860.0,121850.0,0.85728742]
[1760105726472,0.19542543,121860.0,121850.0,0.64924119]
[1760105726700,0.21557543,121860.0,121850.0,0.65024119]
[1760105726912,0.21557543,121860.0,121850.0,0.81537742]
[1760105727158,0.16770543,121860.0,121850.0,0.85928742]
[1760105727401,0.00358267,121860.0,121850.0,0.93901113]
[1760105728147,0.00358267,121860.0,121850.0,0.7748749]
[1760105728148,0.00461649,121860.0,121850.0,0.7748749]
[1760105728363,0.16873925,121860.0,121850.0,0.7748749]
[1760105728609,0.00461649,121860.0,121850.0,0.93901113]
[1760105728847,0.00461649,121860.0,121850.0,0.92861497]
[1760105729083,0.00358267,121860.0,121850.0,0.92758115]
[1760105730033,0.21557543,121860.0,121850.0,0.05995505]
[1760105730315,0.21557543,121860.0,121850.0,0.002]
[1760105730316,0.25747543,121860.0,121850.0,0.002]
[1760105730559,0.61275221,121860.0,121850.0,0.00174219]
[1760105730796,1.16626174,121860.0,121850.0,0.00174219]
[1760105731008,0.63552867,121860.0,121850.0,0.00174219]
[1760105731245,0.63552867,121860.0,121850.0,0.001]
[1760105731246,0.5859908,121860.0,121850.0,0.001]
[1760105731460,0.56839037,121860.0,121850.0,0.02783]
[1760105731679,0.56839037,121860.0,121840.0,0.58290497]
[1760105731680,0.16413623,121850.0,121840.0,0.58290497]
[1760105731897,0.19185623,121850.0,121840.0,0.1589987]
[1760105732545,0.20778623,121850.0,121840.0,0.0301519]
[1760105732980,0.20778623,121850.0,121840.0,0.0311519]
[1760105733200,0.24968623,121850.0,121840.0,0.002]
[1760105733425,0.24968623,121850.0,121840.0,0.001]
[1760105733649,1.1204193,121850.0,121840.0,0.001]
[1760105733880,0.58968623,121850.0,121840.0,0.001]
[1760105734118,1.15327427,121850.0,121840.0,0.001]
[1760105734344,0.16416317,121830.0,121820.0,0.02387445]
[1760105734560,0.18181317,121830.0,121820.0,0.07104615]
[1760105734769,0.21026317,121830.0,121820.0,0.07104615]
[1760105735233,0.21026317,121830.0,121820.0,0.00015084]
[1760105735461,0.25054317,121830.0,121820.0,0.00015084]
[1760105736145,0.25054317,121830.0,121820.0,0.16432749]
[1760105736353,0.21026317,121830.0,121820.0,0.16432749]
[1760105736566,0.21026317,121830.0,121820.0,0.00015084]
[1760105737212,0.2585958,121830.0,121820.0,0.00015084]
[1760105737422,0.2183158,121830.0,121820.0,0.00142233]
[1760105737919,0.21026317,121830.0,121820.0,0.19340578]
[1760105738145,0.25054317,121830.0,121820.0,0.00089913]
[1760105738362,0.59054317,121830.0,121820.0,0.00089913]
[1760105738577,0.59864341,121830.0,121820.0,0.00089913]
[1760105739233,1.12937648,121830.0,121820.0,0.00089913]
[1760105739443,1.14463388,121830.0,121820.0,0.00089913]
[1760105739665,0.69389761,121830.0,121820.0,0.00089913]
[1760105740702,0.61390081,121830.0,121820.0,0.00089913]
[1760105741319,0.59864341,121830.0,121820.0,0.00089913]
[1760105741751,0.39420024,121830.0,121820.0,0.02922913]
[1760105741962,0.52991341,121830.0,121820.0,0.05060913]
[1760105742169,0.55836341,121830.0,121820.0,0.05060913]
[1760105742378,0.51226341,121830.0,121820.0,0.21478578]
[1760105742605,0.34810024,121830.0,121820.0,0.21478578]
[1760105742887,0.50416317,121830.0,121820.0,0.78556885]
[1760105743113,0.34,121830.0,121820.0,0.86556565]
[1760105743343,0.50416317,121830.0,121820.0,0.78556885]
[1760105743563,0.50416317,121830.0,121820.0,0.25483578]
[1760105743782,0.51226753,121830.0,121820.0,0.09065913]
[1760105744016,0.50416317,121830.0,121820.0,0.20848716]
[1760105744249,0.34,121830.0,121820.0,0.24853716]
[1760105744484,0.34,121830.0,121820.0,0.88941893]
[1760105744944,0.16416317,121830.0,121820.0,0.88941893]
[1760105745170,0.25292317,121830.0,121820.0,0.0301519]
[1760105745433,0.16417665,121820.0,121810.0,0.19434203]
[1760105745692,0.21280743,121820.0,121810.0,0.30579409]
[1760105745935,0.21280743,121820.0,121810.0,0.14160396]
[1760105746153,0.16419013,121810.0,121800.0,0.22563361]
[1760105746360,0.16419013,121810.0,121800.0,0.36723757]
[1760105746775,0.16419013,121810.0,121800.0,0.32718757]
[1760105746987,0.16419013,121810.0,121800.0,0.85792064]
[1760105747403,0.16419013,121810.0,121800.0,0.89897064]
[1760105747615,0.18435743,121820.0,121800.0,0.89897064]
[1760105747830,0.00015078,121820.0,121810.0,0.88485617]
[1760105748036,0.00015078,121820.0,121810.0,0.89662716]
[1760105748244,0.00015078,121820.0,121810.0,0.88933174]
[1760105748872,0.16432743,121820.0,121810.0,0.15455854]
[1760105749082,0.21177743,121820.0,121810.0,0.15455854]
[1760105749282,0.21177743,121820.0,121810.0,0.32074867]
[1760105749488,0.21177743,121820.0,121810.0,0.15655854]
[1760105749697,0.25564743,121820.0,121810.0,0.002]
[1760105750127,0.21177743,121820.0,121810.0,0.002]
[1760105750343,0.25564743,121820.0,121810.0,0.002]
[1760105750745,0.25318479,121820.0,121810.0,0.002]
[1760105750953,0.25318479,121820.0,121810.0,0.00251196]
[1760105751372,0.25318479,121820.0,121810.0,0.00224182]
[1760105751583,0.21162665,121820.0,121810.0,0.05082182]
[1760105751794,0.18504665,121820.0,121810.0,0.74574502]
[1760105751995,0.21162665,121820.0,121810.0,0.04433429]
[1760105752210,0.21162665,121820.0,121800.0,0.78532822]
[1760105752415,0.16419013,121810.0,121800.0,0.90859708]
[1760105752623,0.16419013,121810.0,121800.0,0.77258383]
[1760105752829,0.22891665,121820.0,121800.0,0.93678744]
[1760105753058,0.18504665,121820.0,121810.0,0.16419013]
[1760105753265,0.21162665,121820.0,121810.0,0.02819]
[1760105753480,0.16419013,121810.0,121800.0,0.90859744]
[1760105753685,0.19077013,121810.0,121800.0,0.93778744]
[1760105753885,0.19077013,121810.0,121800.0,0.93172275]
[1760105754103,0.19077013,121810.0,121800.0,0.93072275]
[1760105754317,0.19077013,121810.0,121800.0,0.93023814]
[1760105754532,0.16419013,121810.0,121800.0,0.43935507]
[1760105754743,0.18504665,121820.0,121800.0,0.43935507]
[1760105754923,0.18504665,121820.0,121800.0,0.96908814]
[1760105755119,0.16419013,121810.0,121800.0,0.96908814]
[1760105755342,0.19077013,121810.0,121800.0,0.84924134]
[1760105755721,0.53324135,121830.0,121810.0,0.16419013]
[1760105755911,0.56890318,121830.0,121810.0,0.7435032]
[1760105756108,0.16417665,121820.0,121810.0,0.7833532]
[1760105756311,0.16417665,121820.0,121810.0,0.86335]
[1760105756712,0.50416318,121830.0,121820.0,0.16417665]
[1760105756929,0.50416318,121830.0,121820.0,0.71529972]
[1760105757136,0.50416318,121830.0,121820.0,0.74348972]
[1760105757555,0.50416317,121830.0,121820.0,0.74348972]
[1760105757794,0.50416317,121830.0,121820.0,0.57931307]
[1760105758049,0.34,121830.0,121820.0,0.78333972]
[1760105758269,0.16417665,121820.0,121810.0,0.21366076]
[1760105758488,0.16417665,121820.0,121810.0,0.89662716]
[1760105758708,0.16417665,121820.0,121810.0,0.36589409]
[1760105758927,0.50553217,121830.0,121820.0,0.16417665]
[1760105759141,0.341369,121830.0,121820.0,0.71132738]
[1760105759333,0.341369,121830.0,121820.0,0.78333972]
[1760105759577,0.50553217,121830.0,121820.0,0.78333972]
[1760105759796,0.53211217,121830.0,121820.0,0.57931307]
[1760105760015,0.53211217,121830.0,121820.0,0.21275665]
[1760105760242,0.53211217,121830.0,121820.0,0.04858]
[1760105760466,0.50553217,121830.0,121820.0,0.21275665]
[1760105760692,0.001369,121830.0,121820.0,0.86333652]
[1760105760932,0.001369,121830.0,121820.0,0.97661048]
[1760105762341,0.001369,121830.0,121820.0,1.37957776]
[1760105762554,0.001369,121830.0,121820.0,1.47957775]
[1760105762794,0.001369,121830.0,121820.0,1.48765429]
[1760105763236,0.001369,121830.0,121820.0,1.3876543]
[1760105763464,0.001369,121830.0,121820.0,0.53892442]
[1760105763732,0.001369,121830.0,121820.0,0.9686575]
[1760105763946,0.001369,121830.0,121820.0,0.96158096]
[1760105764486,0.001369,121830.0,121820.0,0.96058096]
[1760105765161,0.001369,121830.0,121820.0,0.96258096]
[1760105765398,0.16553217,121830.0,121820.0,0.22782124]
[1760105765684,0.16553217,121830.0,121820.0,0.001]
[1760105765685,0.29264743,121830.0,121820.0,0.001]
[1760105765931,1.54650256,121830.0,121820.0,0.001]
[1760105766177,1.84650256,121830.0,121820.0,0.001]
[1760105766418,1.84650256,121830.0,121820.0,0.002]
[1760105766661,1.84650256,121830.0,121820.0,0.001]
[1760105766881,1.86942485,121830.0,121820.0,0.001]
[1760105767091,0.16419013,121810.0,121800.0,0.00051202]
[1760105767314,0.7141632,121810.0,121800.0,0.0006628]
[1760105767549,0.80062833,121810.0,121800.0,0.0006628]
[1760105768031,0.80062833,121810.0,121800.0,0.00040929]
[1760105768409,0.88375039,121810.0,121800.0,0.00040929]
[1760105768986,0.88374924,121810.0,121800.0,0.00040929]
[1760105770201,1.82374924,121810.0,121800.0,0.00040929]
[1760105770415,0.50423057,121780.0,121770.0,0.06619503]
[1760105770631,0.52467433,121780.0,121770.0,0.06619503]
[1760105770836,0.55088088,121780.0,121770.0,0.06619503]
[1760105771048,0.16425755,121760.0,121750.0,0.08787503]
[1760105771262,0.18403755,121760.0,121750.0,0.06619503]
[1760105771491,0.16427104,121750.0,121740.0,0.02168]
[1760105771699,0.18459104,121750.0,121730.0,0.29486225]
[1760105771909,0.16428454,121740.0,121730.0,0.25099389]
[1760105772132,0.16428454,121740.0,121730.0,0.44213192]
[1760105772339,0.16428454,121740.0,121730.0,0.37593689]
[1760105772561,0.16428454,121740.0,121720.0,0.0004]
[1760105772562,0.16429803,121730.0,121720.0,0.0004]
[1760105772777,0.7300483,121730.0,121720.0,0.0004]
[1760105773037,0.61050523,121730.0,121720.0,0.0004]
[1760105773228,0.61062891,121730.0,121720.0,0.0004]
[1760105773918,0.56810891,121730.0,121720.0,0.0004]
[1760105774137,0.56810891,121730.0,121720.0,0.16471153]
[1760105774344,0.56810891,121730.0,121720.0,0.02724]
[1760105774550,0.56810891,121730.0,121720.0,0.0004]
[1760105776576,0.61062891,121730.0,121720.0,0.0004]
[1760105776836,1.21663333,121730.0,121720.0,0.0004]
[1760105777073,0.68590026,121730.0,121720.0,0.00449903]
[1760105777833,1.29975539,121730.0,121720.0,0.00449903]
[1760105778594,1.22448404,121730.0,121720.0,0.00449903]
[1760105779317,0.69375097,121730.0,121720.0,0.00449903]
[1760105779555,1.22448404,121730.0,121720.0,0.00449903]
[1760105780778,0.69375097,121730.0,121720.0,0.00449903]
[1760105781027,0.61062891,121730.0,121720.0,0.00449903]
[1760105782216,0.37514088,121730.0,121720.0,0.03133903]
[1760105782446,0.56810891,121730.0,121720.0,0.00449903]
[1760105782683,0.35536088,121730.0,121720.0,0.05301903]
[1760105782921,0.61062891,121730.0,121720.0,0.00449903]
[1760105783667,0.4090368,121730.0,121720.0,0.00449903]
[1760105783895,0.21287171,121730.0,121720.0,0.16881056]
[1760105784125,0.21287171,121730.0,121720.0,0.00449903]
[1760105784613,0.25539171,121730.0,121720.0,0.00449903]
[1760105784843,1.00083364,121730.0,121720.0,0.00449903]
[1760105785095,1.0839557,121730.0,121720.0,0.00449903]
[1760105785563,0.16431153,121720.0,121710.0,0.01138]
[1760105785790,1.31265552,121720.0,121710.0,0.01138]
[1760105786018,1.38384552,121720.0,121710.0,0.01138]
[1760105786273,1.38384552,121720.0,121710.0,0.01189259]
[1760105786974,0.55528153,121720.0,121710.0,0.01189259]
[1760105787204,0.18420208,121730.0,121710.0,0.26742762]
[1760105787428,0.18420208,121730.0,121710.0,0.34742442]
[1760105787891,0.16431153,121720.0,121710.0,0.34742442]
[1760105788129,0.16431153,121720.0,121710.0,0.06041259]
[1760105788358,0.21276153,121720.0,121710.0,0.01189259]
[1760105788610,1.00072346,121720.0,121710.0,0.01189259]
[1760105789070,1.08384552,121720.0,121710.0,0.01189259]
[1760105789500,0.33840359,121720.0,121710.0,0.01189259]
[1760105789713,1.16384232,121720.0,121710.0,0.01189259]
[1760105790144,1.08384552,121720.0,121710.0,0.01189259]
[1760105790795,1.08138085,121720.0,121710.0,0.01189259]
[1760105791698,0.33593892,121720.0,121710.0,0.01189259]
[1760105791908,1.08138085,121720.0,121710.0,0.01189259]
[1760105792384,1.42138085,121720.0,121710.0,0.01189259]
[1760105792606,1.80137765,121720.0,121710.0,0.01189259]
[1760105793468,1.81882511,121720.0,121710.0,0.01189259]
[1760105793690,1.73882831,121720.0,121710.0,0.01189259]
[1760105794774,0.99338638,121720.0,121710.0,0.01189259]
[1760105794995,1.73882831,121720.0,121710.0,0.01189259]
[1760105795441,0.63176138,121720.0,121710.0,0.01189259]
[1760105795661,0.6649541,121720.0,121710.0,0.01189259]
[1760105796106,1.41039603,121720.0,121710.0,0.01189259]
[1760105796797,1.43243103,121720.0,121710.0,0.01189259]
[1760105797010,1.39357427,121720.0,121710.0,0.01189259]
[1760105797225,2.03357427,121720.0,121710.0,1e-08]
[1760105797438,2.08060926,121720.0,121710.0,1e-08]
[1760105797675,2.16060606,121720.0,121710.0,1e-08]
[1760105797902,1.75546337,121720.0,121710.0,1e-08]
[1760105798115,2.08046336,121720.0,121710.0,1e-08]
[1760105798325,2.08797981,121720.0,121710.0,1e-08]
[1760105799537,1.01753789,121720.0,121710.0,1e-08]
[1760105799758,1.76397982,121720.0,121710.0,1e-08]
[1760105799977,2.01045982,121720.0,121710.0,1e-08]
[1760105800187,1.70297213,121720.0,121710.0,1e-08]
[1760105800395,1.71145982,121720.0,121710.0,1e-08]
[1760105800618,2.01145982,121720.0,121710.0,1e-08]
[1760105800835,0.97106757,121720.0,121710.0,1e-08]
[1760105801051,1.1343791,121720.0,121710.0,1e-08]
[1760105801266,1.15149028,121720.0,121710.0,1e-08]
[1760105801482,1.1744291,121720.0,121710.0,1e-08]
[1760105801693,1.91887103,121720.0,121710.0,1e-08]
[1760105802594,1.9189551,121720.0,121710.0,1e-08]
[1760105802818,1.17351317,121720.0,121710.0,1e-08]
[1760105803461,0.83351317,121720.0,121710.0,1e-08]
[1760105803944,0.83451317,121720.0,121710.0,1e-08]
[1760105804170,0.49446317,121720.0,121710.0,1e-08]
[1760105804403,0.47152435,121720.0,121710.0,1e-08]
[1760105804839,0.51157435,121720.0,121710.0,1e-08]
[1760105805486,0.59157115,121720.0,121710.0,1e-08]
[1760105805707,0.51157435,121720.0,121710.0,1e-08]
[1760105806385,0.47152435,121720.0,121710.0,1e-08]
[1760105807138,0.49346317,121720.0,121710.0,1e-08]
[1760105808055,0.37125164,121720.0,121710.0,1e-08]
[1760105808283,0.46593317,121720.0,121710.0,0.19208504]
[1760105808504,0.49306317,121720.0,121710.0,1e-08]
[1760105808949,0.53516317,121720.0,121710.0,1e-08]
[1760105809197,0.49306317,121720.0,121710.0,1e-08]
[1760105809460,0.46593317,121720.0,121710.0,0.21414504]
[1760105809684,0.46593317,121720.0,121710.0,0.02206001]
[1760105809685,0.49306317,121720.0,121710.0,0.02206001]
[1760105809913,0.53516317,121720.0,121710.0,1e-08]
[1760105810335,0.49306317,121720.0,121710.0,1e-08]
[1760105810786,0.4905985,121720.0,121710.0,1e-08]
[1760105811004,0.47533671,121720.0,121710.0,1e-08]
[1760105811225,0.53270004,121720.0,121710.0,1e-08]
[1760105811452,1.27814197,121720.0,121710.0,1e-08]
[1760105811936,1.70873076,121720.0,121710.0,1e-08]
[1760105812127,1.70873076,121720.0,121670.0,0.02206]
[1760105812128,0.16436554,121680.0,121670.0,0.02206]
[1760105812389,0.18474554,121680.0,121670.0,0.02206]
[1760105812608,0.21187554,121680.0,121670.0,0.08825503]
[1760105812832,0.21187554,121680.0,121670.0,0.09030615]
[1760105813058,0.21187554,121680.0,121670.0,0.08036893]
[1760105813281,0.18474554,121680.0,121670.0,0.08036893]
[1760105813494,0.21187554,121680.0,121670.0,0.00255471]
[1760105814624,0.04751,121680.0,121670.0,0.16693376]
[1760105814844,0.18474554,121680.0,121670.0,0.21675376]
[1760105815055,0.18474554,121680.0,121670.0,0.21775376]
[1760105815268,0.20666701,121690.0,121670.0,0.30483333]
[1760105815480,0.16435204,121690.0,121680.0,0.02206]
[1760105815705,0.05062283,121700.0,121680.0,0.18642554]
[1760105815934,0.02198295,121700.0,121690.0,0.21417204]
[1760105816156,0.16433853,121700.0,121690.0,0.25584204]
[1760105816369,0.16435204,121690.0,121670.0,0.50487917]
[1760105816593,0.18467204,121690.0,121680.0,0.21418554]
[1760105816817,0.19287545,121700.0,121680.0,0.21418554]
[1760105817034,0.16435204,121690.0,121680.0,0.25585554]
[1760105817248,0.19287545,121700.0,121680.0,0.25585554]
[1760105817460,0.16435204,121690.0,121680.0,0.25585554]
[1760105817677,0.16435204,121690.0,121680.0,0.09149]
[1760105817897,0.16435204,121690.0,121680.0,0.27229209]
[1760105818142,0.16435204,121690.0,121680.0,0.21418554]
[1760105818616,0.16435204,121690.0,121680.0,0.04982]
[1760105818827,0.16435204,121690.0,121680.0,0.21418554]
[1760105819042,0.04230295,121700.0,121680.0,0.21418554]
[1760105819263,0.04230295,121700.0,121690.0,0.16435204]
[1760105819492,0.19148204,121690.0,121670.0,0.00050359]
[1760105819715,0.18474554,121680.0,121670.0,0.00050359]
[1760105820178,0.25397554,121680.0,121670.0,0.00050359]
[1760105820438,1.02140042,121680.0,121670.0,0.00050359]
[1760105820663,1.49183853,121680.0,121670.0,0.00050359]
[1760105820881,1.45579504,121680.0,121670.0,0.00050359]
[1760105821112,1.45579504,121680.0,121670.0,0.00255471]
[1760105821341,1.41184173,121680.0,121670.0,0.00255471]
[1760105821571,0.6663998,121680.0,121670.0,0.00255471]
[1760105822232,0.71128922,121680.0,121670.0,0.00255471]
[1760105822929,0.72886755,121680.0,121670.0,0.00255471]
[1760105823387,1.44500728,121680.0,121670.0,0.00255471]
[1760105823604,1.55430628,121680.0,121670.0,0.00255471]
[1760105823818,1.87290718,121680.0,121650.0,0.0004]
[1760105824030,1.89183949,121660.0,121650.0,0.00055051]
[1760105824258,2.32276348,121660.0,121650.0,0.00055051]
[1760105824504,0.16440608,121650.0,121640.0,0.0004]
[1760105824727,1.23945007,121650.0,121640.0,0.0004]
[1760105824955,1.3271984,121650.0,121640.0,0.0004]
[1760105825426,0.48105608,121650.0,121640.0,0.0004]
[1760105825642,0.43795608,121650.0,121640.0,0.0004]
[1760105825847,0.48105608,121650.0,121640.0,0.0004]
[1760105826306,1.30962007,121650.0,121640.0,0.0004]
[1760105828692,1.64962007,121650.0,121640.0,0.0004]
[1760105828909,1.66715149,121650.0,121640.0,0.0004]
[1760105829336,1.66715149,121650.0,121640.0,1e-08]
[1760105829564,6.71715149,121650.0,121640.0,1e-08]
[1760105829781,6.79714829,121650.0,121640.0,1e-08]
[1760105830274,6.11386111,121650.0,121640.0,1e-08]
[1760105830499,6.09965665,121650.0,121640.0,1e-08]
[1760105830720,6.11484761,121650.0,121640.0,1e-08]
[1760105830942,6.11238152,121650.0,121640.0,1e-08]
[1760105831163,6.11138152,121650.0,121640.0,1e-08]
[1760105831379,6.14153342,121650.0,121640.0,1e-08]
[1760105831574,6.14253342,121650.0,121640.0,1e-08]
[1760105831834,6.27212683,121650.0,121640.0,1e-08]
[1760105832287,0.16444663,121620.0,121590.0,0.01326254]
[1760105832511,0.51151368,121600.0,121590.0,0.01376043]
[1760105832726,1.72317767,121600.0,121590.0,0.01376043]
[1760105832943,0.90992914,121590.0,121580.0,0.0004]
[1760105833159,1.56000333,121590.0,121580.0,0.0004]
[1760105833392,1.64533378,121590.0,121580.0,0.0004]
[1760105833618,6.1545278,121560.0,121550.0,1e-08]
[1760105833835,6.1545278,121560.0,121500.0,5.1098824]
[1760105833836,0.1645955,121510.0,121500.0,5.1098824]
[1760105834074,0.98020743,121510.0,121500.0,5.1098824]
[1760105834304,1.00017743,121510.0,121500.0,5.1098824]
[1760105834762,1.66977949,121510.0,121500.0,5.0584124]
[1760105834994,2.09570748,121510.0,121500.0,5.0584124]
[1760105835216,2.31621219,121510.0,121500.0,5.0584124]
[1760105835404,2.34732329,121510.0,121500.0,5.0584124]
[1760105835688,2.28538195,121510.0,121500.0,5.0584124]
[1760105835944,1.53994002,121510.0,121500.0,5.0584124]
[1760105836458,2.31061566,121510.0,121500.0,5.0584124]
[1760105836708,2.27844295,121510.0,121500.0,5.0584124]
[1760105836938,0.93300102,121510.0,121500.0,5.0584124]
[1760105837176,0.88990102,121510.0,121500.0,5.0584124]
[1760105837426,0.90584102,121510.0,121500.0,5.0584124]
[1760105837654,1.65128295,121510.0,121500.0,5.0584124]
[1760105838396,1.95128295,121510.0,121500.0,5.0584124]
[1760105838857,1.95128295,121510.0,121500.0,5.06560342]
[1760105839085,1.20584102,121510.0,121500.0,5.06560342]
[1760105839320,1.95128295,121510.0,121500.0,5.06560342]
[1760105839558,7.00128295,121510.0,121500.0,5.06560342]
[1760105839803,7.00128295,121510.0,121500.0,4.56298498]
[1760105839804,7.12643401,121510.0,121500.0,4.56298498]
[1760105840040,7.99687592,121510.0,121500.0,4.0825461]
[1760105840274,8.25375554,121510.0,121500.0,3.35401784]
[1760105840508,8.25375554,121510.0,121500.0,2.49012299]
[1760105840509,7.6528719,121510.0,121500.0,2.49012299]
[1760105840745,7.42205555,121510.0,121500.0,2.2844087]
[1760105840985,7.34702293,121510.0,121500.0,2.08854103]
[1760105841218,6.68631547,121510.0,121500.0,1.96882708]
[1760105841441,7.4490104,121510.0,121500.0,1.94410474]
[1760105841696,7.00830082,121510.0,121500.0,1.46318158]
[1760105841915,7.01030082,121510.0,121500.0,1.25021954]
[1760105842132,7.01030082,121510.0,121500.0,1.17495646]
[1760105842384,7.01030082,121510.0,121500.0,0.78014188]
[1760105842385,7.04139722,121510.0,121500.0,0.78014188]
[1760105842621,7.04139722,121510.0,121500.0,0.67883242]
[1760105842865,7.04139722,121510.0,121500.0,0.3847899]
[1760105843093,7.31030082,121510.0,121500.0,0.26825001]
[1760105843313,7.30830082,121510.0,121500.0,0.26825001]
[1760105843789,6.35964912,121510.0,121500.0,0.26825001]
[1760105844026,6.22464914,121510.0,121500.0,0.26825001]
[1760105844280,5.68293314,121510.0,121500.0,0.26825001]
[1760105844502,5.98493314,121510.0,121500.0,0.26825001]
[1760105844954,6.32493314,121510.0,121500.0,0.26825001]
[1760105845186,6.32293314,121510.0,121500.0,0.26825001]
[1760105845882,6.32293314,121510.0,121490.0,0.3]
[1760105845883,5.15306095,121500.0,121490.0,0.3]
[1760105846102,6.55209029,121500.0,121490.0,0.3]
[1760105846558,6.28722475,121500.0,121490.0,0.30051398]
[1760105847493,6.28822475,121500.0,121490.0,0.30051398]
[1760105847722,5.45251111,121500.0,121490.0,0.30051398]
[1760105847952,1.66992475,121500.0,121490.0,0.30051398]
[1760105848184,5.98822475,121500.0,121490.0,0.30051398]
[1760105848642,1.5053157,121500.0,121490.0,0.30051398]
[1760105848871,1.66992475,121500.0,121490.0,0.34113356]
[1760105849101,1.66992475,121500.0,121490.0,0.30051398]
[1760105849388,5.45351111,121500.0,121490.0,0.30051398]
[1760105849610,6.28822475,121500.0,121490.0,0.30051398]
[1760105850793,6.28575562,121500.0,121490.0,0.30051398]
[1760105851020,1.43274198,121500.0,121490.0,0.30051398]
[1760105851260,1.96745562,121500.0,121490.0,0.30051398]
[1760105851511,6.82046926,121500.0,121490.0,0.30051398]
[1760105851969,6.83547514,121500.0,121490.0,0.30051398]
[1760105852195,0.4947745,121490.0,121480.0,0.10568182]
[1760105852427,5.69239608,121490.0,121480.0,0.06556182]
[1760105852871,6.03239608,121490.0,121480.0,0.06556182]
[1760105853081,6.09547268,121490.0,121480.0,0.06556182]
[1760105853352,6.36532078,121490.0,121480.0,0.06556182]
[1760105853569,6.30224418,121490.0,121480.0,0.06556182]
[1760105854264,6.30324418,121490.0,121480.0,0.06556182]
[1760105856213,6.32059722,121490.0,121480.0,0.06556182]
[1760105856443,6.3834084,121490.0,121480.0,0.06556182]
[1760105857818,6.15669476,121490.0,121480.0,0.06607587]
[1760105858037,6.6914084,121490.0,121480.0,0.06607587]
[1760105858264,0.16466326,121460.0,121450.0,7e-05]
[1760105858501,5.17567042,121460.0,121450.0,7e-05]
[1760105858736,6.26245074,121460.0,121450.0,7e-05]
[1760105859019,6.0277371,121460.0,121450.0,7e-05]
[1760105859215,6.02780466,121460.0,121450.0,7e-05]
[1760105859430,6.02830586,121460.0,121450.0,7e-05]
[1760105860084,5.79359222,121460.0,121450.0,7e-05]
[1760105860309,6.32830586,121460.0,121450.0,7e-05]
[1760105860526,6.32930586,121460.0,121450.0,7e-05]
[1760105861030,6.8640195,121460.0,121450.0,7e-05]
[1760105861261,6.31420076,121460.0,121450.0,7e-05]
[1760105861498,6.88566233,121460.0,121450.0,7e-05]
[1760105861974,6.94081422,121460.0,121450.0,7e-05]
[1760105862192,0.76469038,121440.0,121430.0,0.10960744]
[1760105862408,0.69945828,121400.0,121390.0,0.11398306]
[1760105862627,1.16317674,121400.0,121390.0,0.11398306]
[1760105862868,6.03805891,121400.0,121390.0,0.11398306]
[1760105863086,5.74982527,121400.0,121390.0,0.11398306]
[1760105863299,6.28453891,121400.0,121390.0,0.11398306]
[1760105863538,5.22341784,121400.0,121390.0,0.11398306]
[1760105863756,6.29334571,121400.0,121390.0,0.11398306]
[1760105863972,5.75863207,121400.0,121390.0,0.11398306]
[1760105864195,5.22391843,121400.0,121390.0,0.11398306]
[1760105864416,5.75963207,121400.0,121390.0,0.11398306]
[1760105864637,5.22491843,121400.0,121390.0,0.11398306]
[1760105864876,5.48990915,121400.0,121390.0,0.11398306]
[1760105865109,5.31465379,121400.0,121390.0,0.11398306]
[1760105865326,0.99635379,121400.0,121390.0,0.11398306]
[1760105867061,0.29689551,121400.0,121390.0,0.11398306]
[1760105867278,0.27947491,121400.0,121390.0,0.18066306]
[1760105867486,0.97093319,121400.0,121390.0,0.11398306]
[1760105868140,1.05405525,121400.0,121390.0,0.11398306]
[1760105868347,1.07154226,121400.0,121390.0,0.11398306]
[1760105868830,6.2645559,121400.0,121390.0,0.11398306]
[1760105869062,6.31752083,121400.0,121390.0,0.11398306]
[1760105869289,0.17304745,121370.0,121340.0,0.11745868]
[1760105869505,1.30752616,121350.0,121340.0,0.11745868]
[1760105869716,0.43448063,121350.0,121340.0,0.11745868]
[1760105869972,0.26966811,121350.0,121340.0,0.35135478]
[1760105870208,0.26966811,121350.0,121340.0,0.25037868]
[1760105870209,0.26166811,121350.0,121340.0,0.25037868]
[1760105870445,0.42648063,121350.0,121340.0,0.11745868]
[1760105870670,0.51010297,121350.0,121340.0,0.11745868]
[1760105870905,0.51010297,121350.0,121340.0,0.18652868]
[1760105870906,0.25969621,121350.0,121340.0,0.18652868]
[1760105871140,0.25969621,121350.0,121340.0,0.45459585]
[1760105871369,0.25969621,121350.0,121340.0,0.14631868]
[1760105871584,0.25969621,121350.0,121340.0,0.18652868]
[1760105871810,0.25969621,121350.0,121340.0,0.43168739]
[1760105872047,0.25969621,121350.0,121340.0,0.49832684]
[1760105872276,0.24698028,121350.0,121340.0,0.49832684]
[1760105872505,0.24698028,121350.0,121340.0,1.03304048]
[1760105872729,0.24698028,121350.0,121340.0,0.49832684]
[1760105872951,0.24698028,121350.0,121340.0,1.03304048]
[1760105873618,0.24698028,121350.0,121340.0,1.06319238]
[1760105873860,0.24698028,121350.0,121340.0,1.14318918]
[1760105874082,0.00050028,121350.0,121340.0,1.14318918]
[1760105874323,0.00050028,121350.0,121340.0,0.60847554]
[1760105874550,0.00050028,121350.0,121340.0,1.14318918]
[1760105875000,0.00050028,121350.0,121340.0,1.15039442]
[1760105875210,0.00050028,121350.0,121340.0,0.50553208]
[1760105875657,0.00050028,121350.0,121340.0,1.04024572]
[1760105876124,0.00050028,121350.0,121340.0,0.50553208]
[1760105876613,0.00050028,121350.0,121340.0,1.04024572]
[1760105876819,0.00050028,121350.0,121340.0,1.12024252]
[1760105877225,0.00050028,121350.0,121340.0,0.58552888]
[1760105877460,0.00050028,121350.0,121340.0,0.50553208]
[1760105877943,0.00050028,121350.0,121340.0,1.07039762]
[1760105878889,0.00050028,121350.0,121340.0,0.53568398]
[1760105879375,0.00050028,121350.0,121340.0,1.07039762]